fUSD/lending_fUSD_20241123
["ID","MTS","AMOUNT","RATE_DAILY","PERIOD"]
[343077779,1732330232790,-166.89835401,0.000779,120]
[343077780,1732330232800,-166.89835401,0.000779,120]
[343077781,1732330232809,-166.89835401,0.000779,120]
[343077782,1732330232818,-166.89835401,0.000779,120]
[343077783,1732330232828,-166.89835401,0.000779,120]
[343077784,1732330232838,-166.89835401,0.000779,120]
[343077785,1732330232848,-166.89835401,0.000779,120]
[343077786,1732330232857,-166.89835401,0.000779,120]
[343077787,1732330232870,-166.89835401,0.000779,120]
[343077788,1732330232880,-166.89835401,0.000779,120]
[343077789,1732330232889,-166.89,0.000779,120]
[343077790,1732330232899,-151.83,0.0007799,120]
[343077791,1732330232909,-151.83,0.0007799,120]
[343077792,1732330232918,-151.83,0.0007799,120]
[343077793,1732330232927,-151.83,0.0007799,120]
[343077794,1732330232936,-151.83,0.0007799,120]
[343077795,1732330232945,-151.83,0.0007799,120]
[343077796,1732330232954,-21.59341853,0.0007799,120]
[343077797,1732330232967,-130.23658147,0.0007799,120]
[343077798,1732330232976,-151.83,0.0007799,120]
[343077799,1732330232986,-151.83,0.0007799,120]
[343077800,1732330232995,-151.83,0.0007799,120]
[343077801,1732330233004,-151.83,0.0007799,120]
[343077802,1732330233014,-151.83,0.0007799,120]
[343077803,1732330233024,-134.14046853,0.0007799,120]
[343077804,1732330233056,-17.68953147,0.0007799,120]
[343077805,1732330233067,-151.83,0.0007799,120]
[343077806,1732330233076,-151.83,0.0007799,120]
[343077807,1732330233086,-133.27073808,0.0007799,120]
[343077808,1732330233202,-500.0,0.00076712,120]
[343077809,1732330233213,-18.55926192,0.0007799,120]
[343077810,1732330233223,-151.83,0.0007799,120]
[343077811,1732330233234,-151.83,0.0007799,120]
[343077812,1732330233245,-151.83,0.0007799,120]
[343077813,1732330233256,-151.83,0.0007799,120]
[343077814,1732330233266,-151.83,0.0007799,120]
[343077815,1732330233276,-151.83,0.0007799,120]
[343077816,1732330233286,-151.83,0.0007799,120]
[343077817,1732330233296,-151.83,0.0007799,120]
[343077818,1732330233306,-151.83,0.0007799,120]
[343077819,1732330233316,-151.83,0.0007799,120]
[343077820,1732330233326,-151.83,0.0007799,120]
[343077821,1732330233337,-151.83,0.0007799,120]
[343077822,1732330233348,-151.83,0.0007799,120]
[343077823,1732330233358,-151.83,0.0007799,120]
[343077824,1732330233370,-151.83,0.0007799,120]
[343077825,1732330233380,-151.83,0.0007799,120]
[343077826,1732330233391,-151.83,0.0007799,120]
[343077827,1732330233401,-151.83,0.0007799,120]
[343077828,1732330233411,-151.83,0.0007799,120]
[343077829,1732330233420,-611.8,0.0007799,30]
[343077830,1732330233430,-2454.61649233,0.00078,120]
[343077831,1732330233871,-546.19241297,0.00078,120]
[343077832,1732330233881,-1503.22425527,0.00078,2]
[343077833,1732330233892,-314.84596091,0.00078,2]
[343077834,1732330233904,-85610.90035697,0.00078,2]
[343077835,1732330233915,-315.7945198,0.00078,2]
[343077837,1732330238316,-500.0,0.00076712,120]
[343077838,1732330238325,-500.0,0.00076712,120]
[343077839,1732330238335,-500.0,0.00076712,120]
[343077840,1732330238344,-500.0,0.00076712,120]
[343077841,1732330238354,-500.0,0.00076712,120]
[343077842,1732330238364,-500.0,0.00076712,120]
[343077843,1732330238374,-500.0,0.00076712,120]
[343077844,1732330238384,-238.12855916,0.00076712,120]
[343077845,1732330238591,-269.07862488,0.00076712,120]
[343077846,1732330238600,-300.26030014,0.00077878,120]
[343077847,1732330238611,-5371.00293156,0.00078,2]
[343077848,1732330238627,-4588.17055245,0.00078,2]
[343077849,1732330238639,-2940.91561838,0.00078,2]
[343077850,1732330238650,-4016.16683002,0.00078,2]
[343077851,1732330238857,-561.45406801,0.00078,2]
[343077890,1732330240499,-500.0,0.00077999,120]
[343077892,1732330240509,-481.89589485,0.00077999,120]
[343077895,1732330240527,-18.10410515,0.00077999,120]
[343077896,1732330240538,-500.0,0.00077999,120]
[343077899,1732330240550,-380.78597485,0.00077999,120]
[343077901,1732330240565,-119.21402515,0.00077999,120]
[343077903,1732330240576,-500.0,0.00077999,120]
[343077904,1732330240587,-500.0,0.00077999,120]
[343077905,1732330240611,-445.67245172,0.00078,2]
[343077906,1732330240633,-346.32366787,0.00078,2]
[343077907,1732330240963,-252.76652637,0.00077999,120]
[343077908,1732330240976,-247.23347363,0.00077999,120]
[343077909,1732330240986,-13.90208718,0.00077999,120]
[343077923,1732330244822,-486.09791282,0.00077999,120]
[343077924,1732330244833,-500.0,0.00077999,120]
[343077925,1732330244842,-500.0,0.00077999,120]
[343077926,1732330244852,-500.0,0.00077999,120]
[343077927,1732330244862,-500.0,0.00077999,120]
[343077928,1732330244874,-54.16541041,0.00077999,120]
[343077929,1732330244904,-445.83458959,0.00077999,120]
[343077930,1732330244914,-232.77541041,0.00077999,120]
[343077931,1732330244925,-267.22458959,0.00077999,120]
[343077932,1732330244936,-120.69772408,0.00077999,120]
[343077933,1732330244948,-379.30227592,0.00077999,120]
[343077934,1732330244957,-500.0,0.00077999,120]
[343077935,1732330244967,-500.0,0.00077999,120]
[343077936,1732330244976,-2303.74520114,0.00078,2]
[343077937,1732330244988,-14875.64987215,0.00078,2]
[343077938,1732330244999,-39056.43737541,0.00078,2]
[343077939,1732330245010,-3301.05573726,0.00078,2]
[343077940,1732330245021,-715.22857209,0.00078,2]
[343077941,1732330245109,-500.0,0.00077999,120]
[343077942,1732330245118,-8580.17317726,0.00078,2]
[343077943,1732330245137,-27047.63042816,0.00078,2]
[343077945,1732330246330,-500.0,0.00077999,120]
[343077946,1732330246339,-483.66382177,0.00077999,120]
[343077947,1732330246350,-59160.51765823,0.00078,2]
[343077948,1732330246361,-279998.48146786,0.00078,2]
[343077949,1732330246375,-1273.63639966,0.00078,2]
[343077950,1732330247023,-1961794.07976091,0.00078,2]
[343077951,1732330247035,-1888.42600752,0.00078,2]
[343077952,1732330247047,-2136.99988,0.00078,2]
[343077953,1732330247495,1050.9173122,0.000598,120]
[343077954,1732330270105,156.06,0.000621,63]
[343077955,1732330335454,500.0,0.00061526,120]
[343077956,1732330338528,500.0,0.00068387,120]
[343077958,1732330807766,509.0,0.00054795,120]
[343077964,1732331059419,800.0,0.00051232,120]
[343077965,1732331059440,800.0,0.00051232,120]
[343077966,1732331059460,800.0,0.00051232,120]
[343077967,1732331059481,600.0,0.00051232,120]
[343077968,1732331059871,200.0,0.00051506,120]
[343077969,1732331059897,210.0,0.00051506,120]
[343077970,1732331059925,2590.0,0.00051506,120]
[343077971,1732331060018,1012.53460256,0.0005178,120]
[343077972,1732331165026,802.0,0.00054795,120]
[343077973,1732331169316,505.0,0.00054795,120]
[343077974,1732331192426,250.0,0.00031,2]
[343077975,1732331225277,200.0,0.0005,120]
[343077976,1732331236095,-200.0,0.0006,120]
[343077977,1732331236118,-462.51204556,0.0006589,120]
[343077978,1732331236140,-506.0,0.0007,100]
[343077979,1732331236162,-200.0,0.0007,120]
[343077980,1732331236183,-506.0,0.000705,101]
[343077981,1732331236204,-4220.86836431,0.000709,2]
[343077982,1732331236228,-506.0,0.00071,102]
[343077983,1732331236250,-2910.62969299,0.00071,120]
[343077984,1732331236271,-506.0,0.000715,103]
[343077985,1732331236293,-976.0,0.00072,104]
[343077986,1732331236316,-456.66,0.00075538,2]
[343077987,1732331236338,-300.0,0.0007568,120]
[343077988,1732331236360,-999.99,0.0007568,20]
[343077989,1732331236384,-700.0,0.00075681,20]
[343077990,1732331236406,-765.75568882,0.00075681,20]
[343077991,1732331242662,200.0,0.00054,120]
[343077992,1732331243108,-424.24431118,0.00075681,20]
[343077993,1732331243130,-534.3145639,0.00075681,20]
[343077994,1732331247133,-85.6854361,0.00075681,20]
[343077995,1732331247154,-572.90305922,0.00075682,30]
[343077996,1732331250092,-1447.33499992,0.00075682,30]
[343078008,1732331338268,50000.0,0.00056,35]
[343078009,1732331344620,500.0,0.00057002,120]
[343078010,1732331347105,-508.66925913,0.00057276,120]
[343078011,1732331356183,-315.35764051,0.00057276,120]
[343078012,1732331356209,-45499.70698489,0.00058,35]
[343078015,1732331367087,-4406.80138092,0.00058,35]
[343078016,1732331369113,-93.49163419,0.00058,35]
[343078017,1732331371081,-717.10742059,0.0006,35]
[343078019,1732331406490,734.7508884,0.00058,120]
[343078025,1732331432487,-505.2491116,0.00058,120]
[343078027,1732331432498,-49282.89257941,0.0006,35]
[343078028,1732331432509,-500.0,0.0006051,120]
[343078029,1732331432521,-20202.42680989,0.00062,35]
[343078040,1732331432790,-10003.43684757,0.00062,35]
[343078041,1732331432802,-276.9999995,0.00062,35]
[343078042,1732331432834,-12903.64678589,0.00062,35]
[343078043,1732331432846,-1488.29368655,0.00062,35]
[343078044,1732331432859,-5125.1958706,0.00062,35]
[343078045,1732331432870,-500.0,0.00063714,2]
[343078046,1732331432882,-500.0,0.00063714,15]
[343078047,1732331433055,-2872.43148807,0.000639,15]
[343078048,1732331433066,-569.87,0.0006399,30]
[343078049,1732331433077,-3332.50264133,0.00064,35]
[343078064,1732331433446,-1925.13,0.00064,35]
[343078065,1732331433459,-44742.36735867,0.00064,35]
[343078066,1732331433468,-509.67501099,0.00064262,2]
[343078067,1732331433479,-190.5561628,0.00064262,15]
[343078068,1732331433489,-1000.0,0.000644,120]
[343078069,1732331433500,-2928.41458457,0.000659,15]
[343078070,1732331433511,-50000.0,0.00066,35]
[343078071,1732331433522,-36582.62323262,0.0006799,2]
[343078072,1732331433533,-50000.0,0.00068,35]
[343078073,1732331433544,-1000.0,0.0007,120]
[343078074,1732331433554,-50000.0,0.0007,35]
[343078075,1732331433564,-2670.15449901,0.0007,14]
[343078076,1732331433574,-236.48,0.00072479,120]
[343078077,1732331433584,-150.0,0.00072547,2]
[343078078,1732331433594,-1000.0,0.00072647,120]
[343078079,1732331433604,-1000.0,0.000744,120]
[343078080,1732331433615,-45799.0,0.00074829,30]
[343078081,1732331433626,-157.27020667,0.00075625,120]
[343078082,1732331433636,-150.95,0.00075656,120]
[343078083,1732331433647,-196.76,0.00075725,2]
[343078084,1732331433658,-248.0,0.00075952,2]
[343078085,1732331433668,-373.0,0.00076,120]
[343078086,1732331433678,-579.28,0.00076017,120]
[343078087,1732331433688,-812.09,0.00076048,2]
[343078088,1732331433700,-150.0,0.0007616,30]
[343078089,1732331433710,-200.0,0.00076204,30]
[343078090,1732331433721,-500.0,0.00076277,2]
[343078091,1732331433731,-150.99,0.00076277,2]
[343078092,1732331433741,-250.0,0.00076305,120]
[343078093,1732331433751,-250.0,0.00076323,120]
[343078094,1732331433762,-11863.08209566,0.00076333,2]
[343078095,1732331433796,-500.0,0.00065999,31]
[343078096,1732331433806,-326.68560719,0.00065999,31]
[343078097,1732331433816,-91.74351152,0.00076333,2]
[343078102,1732331438520,-2594.02439282,0.00076333,2]
[343078103,1732331438530,-2485.37,0.00076335,2]
[343078104,1732331438539,-167.35,0.00076399,2]
[343078105,1732331438549,-250.0,0.00076439,120]
[343078106,1732331438559,-790.55,0.000765,60]
[343078107,1732331438569,-2751.0,0.00076505,120]
[343078108,1732331438579,-200.0,0.00076508,2]
[343078109,1732331438588,-152.74,0.00076603,2]
[343078110,1732331438598,-505.7831269,0.00076712,120]
[343078111,1732331438609,-182.17,0.00076751,120]
[343078112,1732331438618,-585.0955,0.00076961,2]
[343078113,1732331438631,-226.30067097,0.00077,14]
[343078114,1732331438652,-1379.59881229,0.00077,14]
[343078115,1732331438664,-782.61261159,0.00077,14]
[343078116,1732331438674,-751.378,0.00077,120]
[343078117,1732331438689,-170.144,0.00077,120]
[343078118,1732331438698,-3613.28821239,0.00077061,2]
[343078119,1732331438710,-10000.0,0.00077061,2]
[343078120,1732331438723,-380.2532935,0.00077061,2]
[343078121,1732331438801,-4394.39737112,0.00077061,2]
[343078124,1732331438813,-2111.44882738,0.00077061,2]
[343078134,1732331438911,-3400.61229561,0.00077061,2]
[343078136,1732331438921,-216.44,0.00077061,30]
[343078138,1732331438930,-162.89,0.0007728,120]
[343078140,1732331438940,-646.69606864,0.00077368,120]
[343078142,1732331438950,-900.0,0.000774,28]
[343078144,1732331438960,-1900.0,0.000775,28]
[343078146,1732331438970,-1000.0,0.00077529,120]
[343078147,1732331438979,-2800.0,0.000776,28]
[343078148,1732331438990,-500.0,0.00077618,120]
[343078149,1732331439000,-150.0,0.00077663,120]
[343078150,1732331439010,-53768.1641,0.00077689,2]
[343078151,1732331439020,-2907.6404,0.00077699,2]
[343078152,1732331439029,-3800.0,0.000777,28]
[343078153,1732331439039,-151.87,0.00077779,120]
[343078154,1732331439048,-13084.26619669,0.00077787,120]
[343078155,1732331439060,-4373.80155658,0.00077787,120]
[343078161,1732331440443,-227.17494811,0.00076712,120]
[343078162,1732331440453,-610.89814876,0.00077787,120]
[343078163,1732331440497,-40791.88987055,0.00077787,120]
[343078164,1732331440507,-506.2070265,0.00077788,120]
[343078165,1732331440517,-537.93305453,0.00077788,120]
[343078166,1732331440527,-500.0,0.00077788,2]
[343078167,1732331440538,-4173.66,0.00077788,120]
[343078168,1732331440548,-22785.48306258,0.00077789,2]
[343078169,1732331440717,-8960.0,0.00077789,2]
[343078173,1732331440728,-300.0,0.00077789,2]
[343078176,1732331440740,-2603.69189403,0.00077789,2]
[343078178,1732331440751,-13283.59292528,0.00077789,2]
[343078180,1732331440762,-7765.58861623,0.00077789,2]
[343078182,1732331440773,-1153.36936734,0.00077789,2]
[343078185,1732331440788,-7531.78395425,0.00077789,2]
[343078187,1732331440799,-3254.90715957,0.00077789,2]
[343078189,1732331440810,-2016.5,0.00077789,2]
[343078191,1732331440821,-256.45423774,0.00077789,2]
[343078193,1732331440832,-486.06072121,0.00077789,2]
[343078195,1732331440845,-12745.69763446,0.00077789,2]
[343078198,1732331440857,-499.7582014,0.00077789,2]
[343078203,1732331444413,-262.86533009,0.00077789,2]
[343078206,1732331444427,-3075.0,0.00077789,2]
[343078208,1732331444439,-3012.08569582,0.00077789,2]
[343078210,1732331444448,-12839.3326,0.00077799,2]
[343078212,1732331444459,-37934.2973,0.00077799,2]
[343078214,1732331444468,-1000.0,0.00077799,2]
[343078216,1732331444477,-2500.0,0.00077799,2]
[343078218,1732331444487,-338.08297992,0.00077799,49]
[343078220,1732331444497,-4800.0,0.000778,28]
[343078222,1732331444507,-456.66,0.00077802,2]
[343078225,1732331444517,-160.50536176,0.00077873,15]
[343078227,1732331444527,-574.84,0.00077898,120]
[343078229,1732331444537,-500.0,0.00077898,120]
[343078231,1732331444547,-1.10661126,0.00077898,120]
[343078249,1732331444832,-517.31501198,0.00077898,120]
[343078251,1732331444841,-500.0,0.00077898,120]
[343078253,1732331444851,-500.0,0.00077898,120]
[343078255,1732331444861,-3949.66,0.00077898,2]
[343078256,1732331444870,-477.2627616,0.00077898,120]
[343078257,1732331444880,-389.50122927,0.00077898,120]
[343078258,1732331444891,-500.0,0.00077898,120]
[343078259,1732331444901,-525.80770823,0.00077898,120]
[343078260,1732331444911,-500.0,0.00077898,120]
[343078261,1732331444922,-500.0,0.00077898,120]
[343078262,1732331444934,-500.0,0.00077898,120]
[343078263,1732331444944,-500.0,0.00077898,120]
[343078264,1732331444953,-310.240001,0.00077898,120]
[343078265,1732331444963,-500.0,0.00077898,120]
[343078266,1732331444973,-500.0,0.00077898,120]
[343078267,1732331444983,-500.0,0.00077898,2]
[343078268,1732331444993,-1336.25,0.00077898,120]
[343078269,1732331445003,-4173.66,0.00077898,120]
[343078270,1732331445013,-500.0,0.00077898,120]
[343078271,1732331445022,-20701.56444263,0.00077899,2]
[343078272,1732331445034,-1074.925,0.00077899,2]
[343078273,1732331445048,-807.83623881,0.00077899,2]
[343078274,1732331445063,-4879.65758759,0.00077899,2]
[343078275,1732331445077,-4578.8670294,0.00077899,2]
[343078276,1732331445092,-494.89745534,0.00077899,2]
[343078287,1732331446471,-6290.23575332,0.00077899,2]
[343078289,1732331446788,-416.0689448,0.00077899,2]
[343078290,1732331446800,-3187.88732942,0.00077899,2]
[343078291,1732331446812,-24333.60554926,0.00077899,2]
[343078292,1732331446823,-331.47180397,0.00077899,2]
[343078293,1732331446835,-86464.6662,0.00077899,2]
[343078294,1732331446846,-522.01898272,0.00077899,2]
[343078297,1732331530995,778.081048,0.00057,120]
[343078298,1732331531106,189.542583,0.00057,120]
[343078299,1732331694495,2003.00254338,0.00057,120]
[343078300,1732331708531,500.0,0.00054795,120]
[343078301,1732331764056,30000.0,0.00057,5]
[343078303,1732331780678,191.04,0.00041096,2]
[343078320,1732332042957,1935.25,0.00058,2]
[343078321,1732332141842,250.0,0.00058,10]
[343078322,1732332164498,250.0,0.00058,30]
[343078323,1732332184808,250.0,0.00058,120]
[343078324,1732332306866,250.0,0.00058,90]
[343078325,1732332309088,1341.10385168,0.0001,2]
[343078326,1732332341711,202080.66278507,0.0004,2]
[343078329,1732332352595,55068.95683673,9.99e-05,2]
[343078330,1732332389129,1985.35334829,0.0003499,2]
[343078332,1732332430312,14786.4011607,0.000225,2]
[343078333,1732332432440,992.57884159,0.000235,2]
[343078334,1732332437454,776.79580087,0.0002402,2]
[343078335,1732332440129,-159.94611775,0.0006,120]
[343078336,1732332454132,-840.45378735,0.0006,120]
[343078337,1732332454157,-1087.33,0.0006,2]
[343078338,1732332454184,-253.161,0.00061344,120]
[343078339,1732332454209,-253.161,0.00062202,120]
[343078340,1732332454240,-300.0,0.00064,120]
[343078341,1732332454265,-500.0,0.000684,120]
[343078342,1732332454296,-1300.0,0.0007,120]
[343078343,1732332454329,-1002.38345021,0.0007,120]
[343078344,1732332454352,-250.0,0.0007,120]
[343078345,1732332454379,-367.49067484,0.000704,30]
[343078346,1732332454403,-150.0,0.00071935,2]
[343078347,1732332454432,-850.0,0.00072,120]
[343078348,1732332454457,-500.0,0.00072632,120]
[343078349,1732332454487,-500.0,0.00073562,120]
[343078350,1732332454512,-872.61,0.00073798,2]
[343078351,1732332454537,-150.99,0.00073798,31]
[343078352,1732332454562,-614.67010732,0.00074,120]
[343078353,1732332461816,1567.38606841,0.00052842,2]
[343078354,1732332470706,99275.416619,0.00052842,4]
[343078355,1732332481789,4960143.00342219,0.00013,2]
[343078356,1732332481816,220809.69317594,0.00013,2]
[343078357,1732332481858,48850.0,0.00013,2]
[343078358,1732332481887,6141390.06587584,0.00013,2]
[343078360,1732332488530,1181.37824271,0.00036,2]
[343078361,1732332488996,3983.44228041,0.00023922,2]
[343078362,1732332494235,2902.30215015,0.00025,2]
[343078363,1732332496111,250.0,0.00057,120]
[343078366,1732332517928,12287.37099999,0.000476,30]
[343078369,1732332520745,3854.14515768,0.00032,90]
[343078370,1732332521023,2441.0,0.0002,2]
[343078372,1732332523452,6119.8618366,0.00042,30]
[343078373,1732332524592,919.65346974,0.0004,2]
[343078376,1732332551646,1405.43209016,0.00055,120]
[343078377,1732332567121,-578.0,0.00064,2]
[343078378,1732332567144,-22228.04942,0.00065,60]
[343078379,1732332582021,-21030.91960346,0.00065,60]
[343078380,1732332582047,-250.0,0.00068,120]
[343078381,1732332582070,-250.0,0.00068,60]
[343078382,1732332582109,-588.76892128,0.0007024,2]
[343078383,1732332582132,-250.0,0.00073,120]
[343078384,1732332582156,-625.32989268,0.00074,120]
[343078385,1732332582181,-850.0,0.00074,120]
[343078386,1732332582205,-165.37727883,0.00074443,120]
[343078387,1732332582229,-171.77,0.00074499,30]
[343078388,1732332582253,-299.99,0.00074499,120]
[343078389,1732332582276,-150.99,0.00074499,2]
[343078390,1732332582302,-157.27020668,0.00075028,120]
[343078391,1732332582328,-23900.0,0.00075129,2]
[343078392,1732332582362,-455.09,0.00075129,2]
[343078393,1732332582388,-1000.0,0.00075282,120]
[343078394,1732332582413,-200.0,0.00075313,30]
[343078395,1732332582436,-152.74,0.0007538,2]
[343078396,1732332582460,-150.63,0.00075397,120]
[343078397,1732332582482,-9999.99,0.00075397,2]
[343078398,1732332582508,-250.0,0.00075441,120]
[343078399,1732332582531,-250.0,0.00075522,120]
[343078400,1732332582553,-1000.0,0.00075587,120]
[343078401,1732332582577,-250.0,0.00075616,120]
[343078402,1732332582605,-998.86,0.00075641,2]
[343078403,1732332582629,-200.0,0.00075663,120]
[343078404,1732332582652,-928.31,0.00075664,30]
[343078405,1732332582675,-2351.13,0.00075686,30]
[343078406,1732332582698,-500.0,0.00075695,30]
[343078407,1732332582721,-192.9,0.00075714,120]
[343078408,1732332582745,-248.0,0.00075805,2]
[343078409,1732332582768,-540.8339318,0.00075996,120]
[343078410,1732332582792,-1047.7,0.00076046,2]
[343078411,1732332582817,-150.0,0.00076046,20]
[343078412,1732332582855,-872.61,0.00076062,2]
[343078413,1732332582880,-157.4,0.00076206,2]
[343078414,1732332582905,-500.0,0.00076283,2]
[343078415,1732332582929,-164.55,0.00076336,2]
[343078416,1732332582954,-162.89,0.00076369,120]
[343078417,1732332582979,-3578.25715229,0.000765,120]
[343078418,1732332583003,-170.14430935,0.00076645,120]
[343078419,1732332583031,-855.732,0.00076645,120]
[343078420,1732332583055,-2000.0,0.00076712,120]
[343078421,1732332583079,-2000.0,0.00076712,120]
[343078422,1732332583102,-2000.0,0.00076712,120]
[343078423,1732332583125,-2000.0,0.00076712,120]
[343078424,1732332583312,-2000.0,0.00076712,120]
[343078425,1732332583348,-2000.0,0.00076712,120]
[343078426,1732332583372,-2000.0,0.00076712,120]
[343078427,1732332583395,-2000.0,0.00076712,120]
[343078428,1732332583419,-2000.0,0.00076712,120]
[343078429,1732332583441,-2000.0,0.00076712,120]
[343078430,1732332583463,-2000.0,0.00076712,120]
[343078431,1732332583485,-2000.0,0.00076712,120]
[343078432,1732332583509,-2000.0,0.00076712,120]
[343078433,1732332583531,-2000.0,0.00076712,120]
[343078434,1732332583555,-2000.0,0.00076712,120]
[343078435,1732332583578,-2000.0,0.00076712,120]
[343078436,1732332583607,-2000.0,0.00076712,120]
[343078437,1732332583630,-2000.0,0.00076712,120]
[343078438,1732332583653,-2000.0,0.00076712,120]
[343078439,1732332583677,-2000.0,0.00076712,120]
[343078440,1732332583699,-3000.0,0.00076712,120]
[343078441,1732332583722,-500.0,0.00076712,120]
[343078442,1732332583746,-500.0,0.00076712,30]
[343078443,1732332583769,-680.49,0.00076712,120]
[343078444,1732332583792,-150.0,0.00076878,60]
[343078445,1732332583817,-301.42,0.00076878,60]
[343078446,1732332583844,-1300.0,0.00077,120]
[343078447,1732332583868,-367.0,0.00077,120]
[343078448,1732332583892,-250.0,0.00077,120]
[343078449,1732332583915,-150.62105629,0.00077,120]
[343078450,1732332583938,-150.0,0.00077012,30]
[343078451,1732332583961,-176.43,0.00077081,91]
[343078452,1732332583985,-3000.0,0.0007712,120]
[343078453,1732332584009,-3000.0,0.0007712,120]
[343078454,1732332584034,-200.0,0.000774,28]
[343078455,1732332584059,-2741.00292635,0.000774,15]
[343078456,1732332584085,-2585.18833929,0.000774,15]
[343078457,1732332584107,-409.36,0.0007749,30]
[343078458,1732332584130,-86464.6662,0.000775,2]
[343078459,1732332584153,-500.0,0.000775,28]
[343078460,1732332584176,-2023.1811,0.00077587,2]
[343078461,1732332584199,-8793.5674,0.000776,2]
[343078462,1732332584226,-1000.0,0.000776,2]
[343078463,1732332584251,-700.0,0.000776,28]
[343078464,1732332584275,-2500.0,0.000776,2]
[343078465,1732332584298,-500.0,0.00077688,120]
[343078466,1732332584321,-500.0,0.00077688,30]
[343078467,1732332584347,-680.49,0.00077688,120]
[343078468,1732332584370,-1270.5425,0.00077689,2]
[343078469,1732332584393,-510.92,0.00077699,120]
[343078470,1732332584417,-3825.86,0.00077699,120]
[343078471,1732332584442,-500.0,0.00077699,120]
[343078472,1732332584466,-500.0,0.00077699,120]
[343078473,1732332584489,-500.0,0.00077699,120]
[343078474,1732332584512,-500.0,0.00077699,120]
[343078475,1732332584535,-500.0,0.00077699,120]
[343078476,1732332584559,-455.65339239,0.00077699,120]
[343078477,1732332584582,-500.0,0.000777,2]
[343078478,1732332584606,-100000.0,0.000777,2]
[343078479,1732332584629,-1000.0,0.000777,30]
[343078480,1732332584653,-1000.0,0.000777,28]
[343078481,1732332584676,-500.0,0.00077788,120]
[343078482,1732332584698,-500.0,0.00077788,120]
[343078483,1732332584719,-500.0,0.00077788,120]
[343078484,1732332584742,-1162.58,0.00077788,120]
[343078485,1732332584764,-500.0,0.00077788,120]
[343078486,1732332584787,-500.0,0.00077788,120]
[343078487,1732332584811,-500.0,0.00077788,120]
[343078488,1732332584843,-528.44904263,0.00077788,120]
[343078489,1732332584882,-500.0,0.00077788,120]
[343078490,1732332584906,-500.0,0.00077798,120]
[343078491,1732332584929,-500.0,0.00077798,30]
[343078492,1732332584953,-680.49,0.00077798,120]
[343078493,1732332584976,-1823.15,0.00077799,120]
[343078494,1732332584999,-550.88,0.00077799,120]
[343078495,1732332585028,-1280.58,0.00077799,120]
[343078496,1732332585052,-3857.88,0.00077799,2]
[343078498,1732332585076,-500.0,0.00077799,120]
[343078500,1732332585103,-500.0,0.00077799,120]
[343078501,1732332585126,-500.0,0.00077799,120]
[343078504,1732332585151,-419.68513565,0.00077799,120]
[343078506,1732332585174,-500.0,0.00077799,120]
[343078508,1732332585196,-234.61123141,0.00077799,120]
[343078510,1732332585219,-160524.7656,0.000778,2]
[343078511,1732332585243,-1200.0,0.000778,28]
[343078512,1732332585265,-500.0,0.00077898,120]
[343078513,1732332585287,-465.61721011,0.00077898,120]
[343078514,1732332585309,-500.0,0.00077898,120]
[343078515,1732332585337,-508.38065959,0.00077898,120]
[343078516,1732332585360,-500.0,0.00077898,120]
[343078517,1732332585385,-500.0,0.00077898,120]
[343078518,1732332585409,-500.0,0.00077898,120]